fUST/lending_fUST_20260623
["ID","MTS","AMOUNT","RATE_DAILY","PERIOD"]
[426160253,1782197444000,-500.0,0.00019037,2]
[426160275,1782197444000,-500.0,0.00019239,2]
[426160251,1782197444000,-578.617889,0.00018991,2]
[426160252,1782197444000,-151.0,0.00019,2]
[426160308,1782197444000,-500.0,0.00019512,2]
[426160250,1782197444000,-500.0,0.00018966,2]
[426160249,1782197444000,-500.0,0.00018966,2]
[426160248,1782197444000,-500.0,0.00018966,2]
[426160255,1782197444000,-500.0,0.00019053,2]
[426160254,1782197444000,-500.0,0.00019037,2]
[426160256,1782197444000,-500.0,0.00019053,2]
[426160257,1782197444000,-500.0,0.00019053,2]
[426160263,1782197444000,-300.0,0.00019178,2]
[426160265,1782197444000,-500.0,0.00019238,2]
[426160266,1782197444000,-500.0,0.00019238,2]
[426160277,1782197444000,-576.17,0.00019239,2]
[426160261,1782197444000,-176.00954085,0.00019151,3]
[426160264,1782197444000,-535.26,0.00019238,2]
[426160259,1782197444000,-500.0,0.00019053,2]
[426160258,1782197444000,-500.0,0.00019053,2]
[426160260,1782197444000,-500.0,0.00019053,2]
[426160269,1782197444000,-794.59,0.00019238,2]
[426160271,1782197444000,-736.03,0.00019238,2]
[426160267,1782197444000,-500.0,0.00019238,2]
[426160278,1782197444000,-500.0,0.00019239,2]
[426160273,1782197444000,-500.0,0.00019239,2]
[426160272,1782197444000,-407.33852878,0.00019238,2]
[426160270,1782197444000,-577.74,0.00019238,2]
[426160279,1782197444000,-610.51,0.00019239,2]
[426160268,1782197444000,-627.65,0.00019238,2]
[426160262,1782197444000,-1058.43845347,0.00019175,2]
[426160310,1782197444000,-794.59,0.00019512,2]
[426160315,1782197444000,-500.0,0.00019513,2]
[426160312,1782197444000,-736.03,0.00019512,2]
[426160356,1782197444000,-501.24,0.00019787,2]
[426160354,1782197444000,-960.72,0.00019787,2]
[426160355,1782197444000,-500.0,0.00019787,2]
[426160343,1782197444000,-369.50918977,0.000197,2]
[426160346,1782197444000,-500.0,0.00019786,2]
[426160345,1782197444000,-535.26,0.00019786,2]
[426160349,1782197444000,-627.65,0.00019786,2]
[426160352,1782197444000,-736.03,0.00019786,2]
[426160350,1782197444000,-794.59,0.00019786,2]
[426160353,1782197444000,-500.0,0.00019787,2]
[426160348,1782197444000,-500.0,0.00019786,2]
[426160347,1782197444000,-500.0,0.00019786,2]
[426160351,1782197444000,-577.74,0.00019786,2]
[426160357,1782197444000,-500.0,0.00019787,2]
[426160359,1782197444000,-531.05,0.00019787,2]
[426160358,1782197444000,-610.51,0.00019787,2]
[426160360,1782197444000,-1149.17,0.00019787,2]
[426160366,1782197444000,-156.86787102,0.00019788,2]
[426160368,1782197444000,-500.0,0.00019788,2]
[426160367,1782197444000,-500.0,0.00019788,2]
[426160362,1782197444000,-500.0,0.00019788,2]
[426160363,1782197444000,-500.0,0.00019788,2]
[426160369,1782197444000,-442.94533444,0.000198,2]
[426160365,1782197444000,-566.10807464,0.00019788,2]
[426160370,1782197444000,-369.50918977,0.000198,2]
[426160364,1782197444000,-500.0,0.00019788,2]
[426160361,1782197444000,-371.23460558,0.00019787,2]
[426160307,1782197444000,-500.0,0.00019512,2]
[426160371,1782197444000,-720.0,0.00019822,2]
[426160344,1782197444000,-578.617889,0.00019701,2]
[426160340,1782197444000,-160.0,0.00019652,2]
[426160372,1782197444000,-500.0,0.00019859,2]
[426160337,1782197444000,-417.15472785,0.00019652,2]
[426160305,1782197444000,-535.26,0.00019512,2]
[426160316,1782197444000,-501.24,0.00019513,2]
[426160311,1782197444000,-577.74,0.00019512,2]
[426160309,1782197444000,-627.65,0.00019512,2]
[426160313,1782197444000,-500.0,0.00019513,2]
[426160314,1782197444000,-960.72,0.00019513,2]
[426160319,1782197444000,-531.05,0.00019513,2]
[426160329,1782197444000,-500.0,0.00019585,2]
[426160342,1782197444000,-442.94533444,0.000197,2]
[426160320,1782197444000,-1149.17,0.00019513,2]
[426160322,1782197444000,-500.0,0.00019514,2]
[426160325,1782197444000,-500.0,0.00019514,2]
[426160323,1782197444000,-500.0,0.00019514,2]
[426160326,1782197444000,-500.0,0.00019514,2]
[426160318,1782197444000,-610.51,0.00019513,2]
[426160324,1782197444000,-500.0,0.00019514,2]
[426160339,1782197444000,-160.0,0.00019652,2]
[426160321,1782197444000,-500.0,0.00019513,2]
[426160334,1782197444000,-500.0,0.00019601,2]
[426160341,1782197444000,-235.467147,0.00019659,2]
[426160338,1782197444000,-160.0,0.00019652,2]
[426160336,1782197444000,-160.0,0.00019652,2]
[426160335,1782197444000,-500.0,0.00019601,2]
[426160331,1782197444000,-500.0,0.00019601,2]
[426160330,1782197444000,-500.0,0.00019585,2]
[426160332,1782197444000,-500.0,0.00019601,2]
[426160328,1782197444000,-500.0,0.00019514,2]
[426160327,1782197444000,-500.0,0.00019514,2]
[426160333,1782197444000,-500.0,0.00019601,2]
[426160411,1782197445000,-960.72,0.00020061,2]
[426160408,1782197445000,-577.74,0.0002006,2]
[426160412,1782197445000,-500.0,0.00020061,2]
[426160416,1782197445000,-531.05,0.00020061,2]
[426160405,1782197445000,-500.0,0.0002006,2]
[426160413,1782197445000,-501.24,0.00020061,2]
[426160414,1782197445000,-500.0,0.00020061,2]
[426160409,1782197445000,-736.03,0.0002006,2]
[426160406,1782197445000,-627.65,0.0002006,2]
[426160407,1782197445000,-794.59,0.0002006,2]
[426160410,1782197445000,-500.0,0.00020061,2]
[426160415,1782197445000,-610.51,0.00020061,2]
[426160429,1782197445000,-369.50918977,0.000202,2]
[426160418,1782197445000,-500.0,0.00020062,2]
[426160420,1782197445000,-500.0,0.00020062,2]
[426160430,1782197445000,-1842.0,0.00020267,2]
[426160419,1782197445000,-500.0,0.00020062,2]
[426160424,1782197445000,-572.02991653,0.00020133,2]
[426160428,1782197445000,-442.94533444,0.000202,2]
[426160422,1782197445000,-500.0,0.00020062,2]
[426160431,1782197445000,-958.0,0.00020267,2]
[426160425,1782197445000,-535.23956287,0.00020149,2]
[426160426,1782197445000,-500.0,0.00020149,2]
[426160423,1782197445000,-500.0,0.00020133,2]
[426160427,1782197445000,-500.0,0.00020149,2]
[426160404,1782197445000,-500.0,0.0002006,2]
[426160417,1782197445000,-1149.17,0.00020061,2]
[426160394,1782197445000,-440.36675501,0.00020024,2]
[426160382,1782197445000,-442.94533444,0.0002,2]
[426160401,1782197445000,-171.43350289,0.00020036,2]
[426160433,1782197445000,-186.0,0.00020267,2]
[426160373,1782197445000,-500.0,0.00019859,2]
[426160374,1782197445000,-223.794255,0.00019862,2]
[426160377,1782197445000,-500.0,0.00019875,2]
[426160376,1782197445000,-469.81026052,0.00019875,2]
[426160375,1782197445000,-1058.43845347,0.00019873,2]
[426160378,1782197445000,-357.65137304,0.00019875,2]
[426160379,1782197445000,-500.0,0.00019875,2]
[426160381,1782197445000,-180.57565744,0.00019986,2]
[426160391,1782197445000,-300.14588378,0.00020024,2]
[426160392,1782197445000,-226.21749122,0.00020024,2]
[426160380,1782197445000,-500.0,0.00019875,2]
[426160385,1782197445000,-300.0,0.0002,4]
[426160402,1782197445000,-535.26,0.0002006,2]
[426160383,1782197445000,-369.50918977,0.0002,2]
[426160386,1782197445000,-202.88812981,0.00020024,2]
[426160387,1782197445000,-343.05915471,0.00020024,2]
[426160388,1782197445000,-377.64913549,0.00020024,2]
[426160389,1782197445000,-194.43705417,0.00020024,2]
[426160390,1782197445000,-298.33393649,0.00020024,2]
[426160393,1782197445000,-537.60361183,0.00020024,2]
[426160395,1782197445000,-224.18166807,0.00020024,2]
[426160396,1782197445000,-234.12395535,0.00020024,2]
[426160400,1782197445000,-195.05664934,0.00020026,2]
[426160399,1782197445000,-207.74880473,0.00020026,2]
[426160398,1782197445000,-454.85214109,0.00020024,2]
[426160397,1782197445000,-542.81240601,0.00020024,2]
[426160403,1782197445000,-500.0,0.0002006,2]
[426160384,1782197445000,-151.0,0.0002,2]
[426160434,1782197445000,-445.0,0.00020267,2]
[426160421,1782197445000,-500.0,0.00020062,2]
[426160436,1782197445000,-535.26,0.00020334,2]
[426160465,1782197445000,-161.16134534,0.00020371,2]
[426160464,1782197445000,-160.72752877,0.00020371,2]
[426160470,1782197445000,-170.78610061,0.00020371,2]
[426160473,1782197445000,-156.17184303,0.00020371,2]
[426160472,1782197445000,-660.55013252,0.00020371,2]
[426160475,1782197445000,-468.24791069,0.00020371,2]
[426160476,1782197445000,-169.77168309,0.00020371,2]
[426160477,1782197445000,-160.66532311,0.00020371,2]
[426160478,1782197445000,-174.78898665,0.00020371,2]
[426160474,1782197445000,-448.36333614,0.00020371,2]
[426160471,1782197445000,-161.10132116,0.00020371,2]
[426160482,1782197445000,-180.40157326,0.00020371,2]
[426160481,1782197445000,-452.43498245,0.00020371,2]
[426160480,1782197445000,-606.46952145,0.00020371,2]
[426160483,1782197445000,-390.11329867,0.00020373,2]
[426160494,1782197445000,-369.50918977,0.000204,2]
[426160485,1782197445000,-271.32692456,0.00020383,2]
[426160484,1782197445000,-168.34082952,0.00020383,2]
[426160488,1782197445000,-162.48081055,0.00020383,2]
[426160491,1782197445000,-198.0,0.00020383,2]
[426160492,1782197445000,-415.49760947,0.00020383,2]
[426160486,1782197445000,-207.82041094,0.00020383,2]
[426160490,1782197445000,-319.26790734,0.00020383,2]
[426160489,1782197445000,-350.68714039,0.00020383,2]
[426160495,1782197445000,-500.0,0.00020407,2]
[426160496,1782197445000,-578.617889,0.00020411,2]
[426160443,1782197445000,-736.03,0.00020334,2]
[426160462,1782197445000,-153.3501662,0.00020371,2]
[426160463,1782197445000,-346.02435804,0.00020371,2]
[426160493,1782197445000,-442.94533444,0.000204,2]
[426160461,1782197445000,-165.23829393,0.00020371,2]
[426160466,1782197445000,-268.80180591,0.00020371,2]
[426160437,1782197445000,-500.0,0.00020334,2]
[426160440,1782197445000,-627.65,0.00020334,2]
[426160441,1782197445000,-794.59,0.00020334,2]
[426160442,1782197445000,-577.74,0.00020334,2]
[426160438,1782197445000,-500.0,0.00020334,2]
[426160432,1782197445000,-1419.0,0.00020267,2]
[426160439,1782197445000,-500.0,0.00020334,2]
[426160435,1782197445000,-204.071528,0.00020267,2]
[426160445,1782197445000,-960.72,0.00020335,2]
[426160447,1782197445000,-501.24,0.00020335,2]
[426160446,1782197445000,-500.0,0.00020335,2]
[426160448,1782197445000,-500.0,0.00020335,2]
[426160450,1782197445000,-531.05,0.00020335,2]
[426160444,1782197445000,-500.0,0.00020335,2]
[426160467,1782197445000,-194.64074671,0.00020371,2]
[426160453,1782197445000,-500.0,0.00020336,2]
[426160451,1782197445000,-1149.17,0.00020335,2]
[426160455,1782197445000,-500.0,0.00020336,2]
[426160449,1782197445000,-610.51,0.00020335,2]
[426160452,1782197445000,-198.62195694,0.00020336,2]
[426160457,1782197445000,-405.77625962,0.00020371,2]
[426160456,1782197445000,-439.45745018,0.00020336,2]
[426160468,1782197445000,-156.31396082,0.00020371,2]
[426160458,1782197445000,-388.87410833,0.00020371,2]
[426160469,1782197445000,-182.07976214,0.00020371,2]
[426160459,1782197445000,-596.66787298,0.00020371,2]
[426160454,1782197445000,-500.0,0.00020336,2]
[426160460,1782197445000,-166.63687282,0.00020371,2]
[426160530,1782197446000,-260.00742,0.00020834,2]
[426160520,1782197446000,-500.0,0.0002061,2]
[426160523,1782197446000,-500.0,0.00020681,2]
[426160525,1782197446000,-358.47350586,0.00020696,2]
[426160510,1782197446000,-736.03,0.00020608,2]
[426160513,1782197446000,-500.0,0.00020609,2]
[426160522,1782197446000,-1497.7918534,0.00020623,2]
[426160529,1782197446000,-209.249134,0.00020834,2]
[426160519,1782197446000,-532.74233267,0.0002061,2]
[426160528,1782197446000,-173.338281,0.00020804,2]
[426160531,1782197446000,-535.26,0.00020882,2]
[426160532,1782197446000,-500.0,0.00020882,2]
[426160527,1782197446000,-528.00936114,0.00020696,2]
[426160515,1782197446000,-500.0,0.00020609,2]
[426160521,1782197446000,-500.0,0.0002061,2]
[426160511,1782197446000,-500.0,0.00020609,2]
[426160501,1782197446000,-1200.0,0.00020547,2]
[426160509,1782197446000,-577.74,0.00020608,2]
[426160533,1782197446000,-500.0,0.00020882,2]
[426160498,1782197446000,-500.0,0.00020423,2]
[426160503,1782197446000,-535.26,0.00020608,2]
[426160500,1782197446000,-496.91,0.000205,2]
[426160499,1782197446000,-270.0,0.00020425,2]
[426160502,1782197446000,-1348.93418506,0.00020547,2]
[426160504,1782197446000,-500.0,0.00020608,2]
[426160506,1782197446000,-220.65,0.00020608,2]
[426160505,1782197446000,-500.0,0.00020608,2]
[426160507,1782197446000,-627.65,0.00020608,2]
[426160518,1782197446000,-1149.17,0.00020609,2]
[426160517,1782197446000,-531.05,0.00020609,2]
[426160508,1782197446000,-794.59,0.00020608,2]
[426160516,1782197446000,-610.51,0.00020609,2]
[426160512,1782197446000,-960.72,0.00020609,2]
[426160514,1782197446000,-501.24,0.00020609,2]
[426160535,1782197446000,-794.59,0.00020882,2]
[426160497,1782197446000,-500.0,0.00020423,2]
[426160541,1782197446000,-501.24,0.00020883,2]
[426160556,1782197446000,-794.59,0.00021156,2]
[426160557,1782197446000,-577.74,0.00021156,2]
[426160559,1782197446000,-500.0,0.00021157,2]
[426160564,1782197446000,-1004.018587,0.000208,2]
[426160563,1782197446000,-172.33,0.00016438,2]
[426160565,1782197446000,-535.0308313,0.00021157,2]
[426160566,1782197446000,-500.0,0.00021157,2]
[426160570,1782197446000,-1149.17,0.00021157,2]
[426160568,1782197446000,-610.51,0.00021157,2]
[426160569,1782197446000,-531.05,0.00021157,2]
[426160567,1782197446000,-501.24,0.00021157,2]
[426160572,1782197446000,-500.0,0.00021229,2]
[426160574,1782197446000,-327.14071029,0.00021388,2]
[426160573,1782197446000,-1000.0,0.000213,2]
[426160545,1782197446000,-1149.17,0.00020883,2]
[426160560,1782197446000,-425.6891687,0.00021157,2]
[426160554,1782197446000,-500.0,0.00021156,2]
[426160571,1782197446000,-500.0,0.00021158,2]
[426160558,1782197446000,-736.03,0.00021156,2]
[426160543,1782197446000,-610.51,0.00020883,2]
[426160548,1782197446000,-500.0,0.00020884,2]
[426160537,1782197446000,-736.03,0.00020882,2]
[426160544,1782197446000,-531.05,0.00020883,2]
[426160534,1782197446000,-627.65,0.00020882,2]
[426160542,1782197446000,-500.0,0.00020883,2]
[426160538,1782197446000,-500.0,0.00020883,2]
[426160539,1782197446000,-960.72,0.00020883,2]
[426160540,1782197446000,-500.0,0.00020883,2]
[426160547,1782197446000,-523.75249764,0.00020884,2]
[426160549,1782197446000,-500.0,0.00020955,2]
[426160550,1782197446000,-151.0,0.00021,2]
[426160551,1782197446000,-193.149027,0.00021095,2]
[426160555,1782197446000,-627.65,0.00021156,2]
[426160536,1782197446000,-577.74,0.00020882,2]
[426160552,1782197446000,-535.26,0.00021156,2]
[426160553,1782197446000,-500.0,0.00021156,2]
[426160588,1782197447000,-505.71302606,0.00021432,2]
[426160593,1782197447000,-167.395825,0.00021598,2]
[426160590,1782197447000,-500.0,0.00021503,2]
[426160594,1782197447000,-535.26,0.00021704,2]
[426160589,1782197447000,-186.335589,0.00021454,2]
[426160592,1782197447000,-168.96256931,0.00021562,30]
[426160595,1782197447000,-627.65,0.00021704,2]
[426160606,1782197447000,-1149.17,0.00021705,2]
[426160585,1782197447000,-610.51,0.00021431,2]
[426160605,1782197447000,-531.05,0.00021705,2]
[426160591,1782197447000,-151.0,0.00021562,30]
[426160587,1782197447000,-1149.17,0.00021431,2]
[426160582,1782197447000,-960.72,0.00021431,2]
[426160597,1782197447000,-577.74,0.00021704,2]
[426160596,1782197447000,-794.59,0.00021704,2]
[426160583,1782197447000,-500.0,0.00021431,2]
[426160581,1782197447000,-500.0,0.00021431,2]
[426160578,1782197447000,-794.59,0.0002143,2]
[426160577,1782197447000,-627.65,0.0002143,2]
[426160580,1782197447000,-736.03,0.0002143,2]
[426160576,1782197447000,-205.14153057,0.0002143,2]
[426160575,1782197447000,-535.26,0.0002143,2]
[426160584,1782197447000,-501.24,0.00021431,2]
[426160603,1782197447000,-501.24,0.00021705,2]
[426160586,1782197447000,-531.05,0.00021431,2]
[426160599,1782197447000,-575.83056249,0.00021704,2]
[426160579,1782197447000,-577.74,0.0002143,2]
[426160601,1782197447000,-960.72,0.00021705,2]
[426160623,1782197447000,-1000.0,0.00021917,2]
[426160628,1782197447000,-309.48452203,0.00021917,2]
[426160620,1782197447000,-1000.0,0.00021917,2]
[426160619,1782197447000,-1000.0,0.00021917,2]
[426160626,1782197447000,-1000.0,0.00021917,2]
[426160621,1782197447000,-1000.0,0.00021917,2]
[426160624,1782197447000,-1000.0,0.00021917,2]
[426160600,1782197447000,-500.0,0.00021705,2]
[426160622,1782197447000,-1000.0,0.00021917,2]
[426160625,1782197447000,-1000.0,0.00021917,2]
[426160614,1782197447000,-1515.23,0.000219,2]
[426160610,1782197447000,-156.0,0.0002189,5]
[426160627,1782197447000,-1000.0,0.00021917,2]
[426160615,1782197447000,-1515.23,0.000219,2]
[426160609,1782197447000,-864.0,0.00021805,10]
[426160598,1782197447000,-160.19943751,0.00021704,2]
[426160604,1782197447000,-610.51,0.00021705,2]
[426160616,1782197447000,-1512.765,0.000219,2]
[426160607,1782197447000,-500.0,0.00021777,2]
[426160602,1782197447000,-500.0,0.00021705,2]
[426160612,1782197447000,-479.71,0.000219,2]
[426160613,1782197447000,-2042.31,0.000219,2]
[426160618,1782197447000,-1000.0,0.00021917,2]
[426160611,1782197447000,-410.31,0.000219,2]
[426160608,1782197447000,-1000.0,0.000218,2]
[426160617,1782197447000,-1512.76,0.000219,2]
[426160631,1782197449000,-289.21213238,0.00021917,2]
[426160644,1782197827000,182.92789547,0.00023123,120]
[426160645,1782197858000,242.57241911,0.000232,120]
[426160647,1782197874000,157.71221888,0.00023123,120]
[426160650,1782197932000,151.0,0.00023131,120]
[426160654,1782197999000,166.0,0.00023131,120]
[426160660,1782198058000,164.0,0.00023131,120]
[426160665,1782198208000,158.0,0.00023131,120]
[426160666,1782198262000,163.0,0.00023131,120]
[426160709,1782198624000,2414.87867603,0.00011,13]
[426160714,1782198632000,-467.09929999,0.00011185,13]
[426160715,1782198632000,-4532.90070001,0.00011185,13]
[426160716,1782198632000,-76.44057824,0.00012,2]
[426160873,1782198638000,-300.0,0.00012239,2]
[426160869,1782198638000,-3197.30485111,0.00012,2]
[426160874,1782198638000,-300.0,0.00012239,2]
[426160871,1782198638000,-3961.00959386,0.00012239,2]
[426160849,1782198638000,-2726.82,0.00012,2]
[426160957,1782198639000,-500.0,0.00016771,2]
[426160955,1782198639000,-500.0,0.00016771,2]
[426160959,1782198639000,-500.0,0.00016773,2]
[426160953,1782198639000,-501.71067538,0.00016771,2]
[426160951,1782198639000,-500.0,0.00016771,2]
[426160949,1782198639000,-500.0,0.00016771,2]
[426160943,1782198639000,-500.0,0.00016771,2]
[426160945,1782198639000,-500.0,0.00016771,2]
[426160939,1782198639000,-500.0,0.00016712,2]
[426160917,1782198639000,-500.0,0.00016438,2]
[426160941,1782198639000,-500.0,0.00016771,2]
[426160947,1782198639000,-500.0,0.00016771,2]
[426160964,1782198639000,-500.0,0.00016773,2]
[426160966,1782198639000,-500.0,0.00016773,2]
[426160961,1782198639000,-567.91084227,0.00016773,2]
[426160970,1782198639000,-500.0,0.00016773,2]
[426160972,1782198639000,-594.34886584,0.00016773,2]
[426160968,1782198639000,-500.0,0.00016773,2]
[426160933,1782198639000,-500.0,0.00016712,2]
[426160977,1782198639000,-500.0,0.00016986,2]
[426160979,1782198639000,-500.0,0.00016986,2]
[426160974,1782198639000,-500.0,0.00016986,2]
[426160980,1782198639000,-500.0,0.00016986,2]
[426160982,1782198639000,-500.0,0.00016986,2]
[426160986,1782198639000,-500.0,0.00016986,2]
[426160988,1782198639000,-500.0,0.00017045,2]
[426160990,1782198639000,-500.0,0.00017045,2]
[426160962,1782198639000,-500.0,0.00016773,2]
[426160935,1782198639000,-500.0,0.00016712,2]
[426160894,1782198639000,-300.0,0.00012239,2]
[426160921,1782198639000,-500.0,0.00016438,2]
[426160880,1782198639000,-300.0,0.00012239,2]
[426160890,1782198639000,-300.0,0.00012239,2]
[426160882,1782198639000,-300.0,0.00012239,2]
[426160888,1782198639000,-300.0,0.00012239,2]
[426160886,1782198639000,-300.0,0.00012239,2]
[426160876,1782198639000,-300.0,0.00012239,2]
[426160878,1782198639000,-300.0,0.00012239,2]
[426160884,1782198639000,-300.0,0.00012239,2]
[426160892,1782198639000,-300.0,0.00012239,2]
[426160896,1782198639000,-300.0,0.00012239,2]
[426160898,1782198639000,-300.0,0.00012239,2]
[426160906,1782198639000,-3950.414655,0.00014111,2]
[426160903,1782198639000,-600.0,0.00013259,2]
[426160900,1782198639000,-300.0,0.00012239,2]
[426160992,1782198639000,-500.0,0.00017045,2]
[426160911,1782198639000,-864.0,0.00016043,2]
[426160901,1782198639000,-433.45811007,0.00013,2]
[426160908,1782198639000,-1940.8607749,0.0001438,2]
[426160909,1782198639000,-720.0,0.00014585,2]
[426160913,1782198639000,-3786.73365769,0.00016105,2]
[426160915,1782198639000,-271.72,0.00016205,2]
[426160937,1782198639000,-500.0,0.00016712,2]
[426160923,1782198639000,-500.0,0.00016438,2]
[426160919,1782198639000,-500.0,0.00016438,2]
[426160927,1782198639000,-500.0,0.00016438,2]
[426160929,1782198639000,-500.0,0.00016712,2]
[426160931,1782198639000,-500.0,0.00016712,2]
[426160925,1782198639000,-500.0,0.00016438,2]
[426160998,1782198639000,-500.0,0.00017045,2]
[426161089,1782198639000,-500.0,0.00018082,2]
[426160994,1782198639000,-500.0,0.00017045,2]
[426161062,1782198639000,-500.0,0.00017808,2]
[426161081,1782198639000,-500.0,0.00017867,2]
[426161083,1782198639000,-312.68575128,0.00017867,2]
[426161066,1782198639000,-500.0,0.00017808,2]
[426161078,1782198639000,-500.0,0.00017867,2]
[426161072,1782198639000,-500.0,0.00017808,2]
[426161070,1782198639000,-507.48942069,0.00017808,2]
[426161068,1782198639000,-500.0,0.00017808,2]
[426161074,1782198639000,-500.0,0.00017867,2]
[426161085,1782198639000,-5010.88146439,0.00018,2]
[426161076,1782198639000,-500.0,0.00017867,2]
[426161079,1782198639000,-500.0,0.00017867,2]
[426161087,1782198639000,-500.0,0.00018082,2]
[426161092,1782198639000,-466.56743895,0.00018082,2]
[426161091,1782198639000,-500.0,0.00018082,2]
[426161100,1782198639000,-500.0,0.00018141,2]
[426161096,1782198639000,-328.78965069,0.00018141,2]
[426161094,1782198639000,-211.65,0.00018082,2]
[426161101,1782198639000,-500.0,0.00018141,2]
[426161103,1782198639000,-500.0,0.00018141,2]
[426161098,1782198639000,-500.0,0.00018141,2]
[426161105,1782198639000,-265.97,0.00018356,2]
[426161109,1782198639000,-500.0,0.00018356,2]
[426161107,1782198639000,-500.0,0.00018356,2]
[426161111,1782198639000,-500.0,0.00018415,2]
[426161114,1782198639000,-500.0,0.00018415,2]
[426160996,1782198639000,-500.0,0.00017045,2]
[426161064,1782198639000,-500.0,0.00017808,2]
[426161060,1782198639000,-1000.0,0.00017648,2]
[426161115,1782198639000,-186.32066585,0.00018415,2]
[426161053,1782198639000,-500.0,0.00017593,2]
[426161059,1782198639000,-500.0,0.00017593,2]
[426161002,1782198639000,-500.0,0.0001726,2]
[426161004,1782198639000,-500.0,0.0001726,2]
[426161006,1782198639000,-500.0,0.0001726,2]
[426161008,1782198639000,-500.0,0.0001726,2]
[426161013,1782198639000,-500.0,0.0001726,2]
[426161023,1782198639000,-500.0,0.00017319,2]
[426161027,1782198639000,-500.0,0.00017319,2]
[426161026,1782198639000,-500.0,0.00017319,2]
[426161029,1782198639000,-500.0,0.00017319,2]
[426161018,1782198639000,-39.55393514,0.0001726,2]
[426161019,1782198639000,-500.0,0.00017319,2]
[426161015,1782198639000,-460.44606486,0.0001726,2]
[426161000,1782198639000,-500.0,0.00017045,2]
[426161031,1782198639000,-500.0,0.00017319,2]
[426161051,1782198639000,-252.84,0.00017593,2]
[426161055,1782198639000,-500.0,0.00017593,2]
[426161057,1782198639000,-500.0,0.00017593,2]
[426161045,1782198639000,-36083.14530588,0.00017554,2]
[426161022,1782198639000,-500.0,0.00017319,2]
[426161043,1782198639000,-500.0,0.00017534,2]
[426161047,1782198639000,-500.0,0.00017593,2]
[426161041,1782198639000,-500.0,0.00017534,2]
[426161039,1782198639000,-500.0,0.00017534,2]
[426161037,1782198639000,-500.0,0.00017534,2]
[426161035,1782198639000,-500.0,0.00017534,2]
[426161033,1782198639000,-500.0,0.00017534,2]
[426161049,1782198639000,-500.0,0.00017593,2]
[426161177,1782198640000,-958.0,0.00020267,2]
[426161183,1782198640000,-395.08,0.00020333,2]
[426161179,1782198640000,-1842.0,0.00020267,2]
[426161181,1782198640000,-186.0,0.00020267,2]
[426161172,1782198640000,-171.52957735,0.00020036,2]
[426161175,1782198640000,-150.189,0.00020267,2]
[426161176,1782198640000,-150.334,0.00020267,2]
[426161173,1782198640000,-500.0,0.00020059,2]
[426161184,1782198640000,-300.14588377,0.00020383,2]
[426161174,1782198640000,-500.0,0.00020059,2]
[426161180,1782198640000,-445.0,0.00020267,2]
[426161178,1782198640000,-1419.0,0.00020267,2]
[426161188,1782198640000,-343.05915471,0.00020392,2]
[426161185,1782198640000,-482.49991645,0.00020383,2]
[426161186,1782198640000,-342.86700577,0.00020383,2]
[426161187,1782198640000,-377.64913549,0.00020383,2]